[Event "Titled Tuesday Blitz December 27 Late 2022"]
[White "Joubert, Dantelle"]
[Black "Antonova, Nadezhda"]
[WhiteFideId "14310813"]
[BlackFideId "14700182"]
[WhiteElo "1566"]
[BlackElo "1945"]
[Result "1-0"]
[Round "11"]
[TimeControl "180+2"]
[Date "2022.12.27"]
[WhiteClock "0:00:18"]
[BlackClock "0:00:06"]

1. d4 {[%clk 0:03:00]}  Nf6 {[%clk 0:02:59]} 2. c4 {[%clk 0:03:00]}  g6 {[%clk 0:02:59]} 3. Nc3 {[%clk 0:02:57]}  Bg7 {[%clk 0:03:00]} 4. e4 {[%clk 0:02:56]}  d6 {[%clk 0:03:00]} 5. Nf3 {[%clk 0:02:56]}  O-O {[%clk 0:03:01]} 6. Be2 {[%clk 0:02:53]}  e5 {[%clk 0:03:01]} 7. dxe5 {[%clk 0:02:50]}  dxe5 {[%clk 0:03:01]} 8. Qxd8 {[%clk 0:02:49]}  Rxd8 {[%clk 0:03:01]} 9. Bg5 {[%clk 0:02:48]}  Re8 {[%clk 0:03:02]} 10. Nd5 {[%clk 0:02:47]}  Nxd5 {[%clk 0:03:02]} 11. cxd5 {[%clk 0:02:46]}  c6 {[%clk 0:03:02]} 12. Bc4 {[%clk 0:02:45]}  cxd5 {[%clk 0:03:02]} 13. Bxd5 {[%clk 0:02:45]}  Nd7 {[%clk 0:03:03]} 14. O-O {[%clk 0:02:33]}  h6 {[%clk 0:03:02]} 15. Bh4 {[%clk 0:02:25]}  Nf6 {[%clk 0:02:59]} 16. Bxf6 {[%clk 0:02:23]}  Bxf6 {[%clk 0:02:59]} 17. Rfc1 {[%clk 0:02:21]}  Rb8 {[%clk 0:02:55]} 18. Rc7 {[%clk 0:02:19]}  Be6 {[%clk 0:02:40]} 19. Bxe6 {[%clk 0:02:16]}  Rxe6 {[%clk 0:02:39]} 20. Rd1 {[%clk 0:02:16]}  Bd8 {[%clk 0:02:02]} 21. Rcd7 {[%clk 0:02:04]}  Bb6 {[%clk 0:01:43]} 22. R1d6 {[%clk 0:01:41]}  Rc8 {[%clk 0:01:24]} 23. Kf1 {[%clk 0:01:39]}  Rxd6 {[%clk 0:01:18]} 24. Rxd6 {[%clk 0:01:39]}  Rc1+ {[%clk 0:01:18]} 25. Ke2 {[%clk 0:01:38]}  Rc2+ {[%clk 0:01:17]} 26. Rd2 {[%clk 0:01:38]}  Rc4 {[%clk 0:01:09]} 27. Kd3 {[%clk 0:01:33]}  Ra4 {[%clk 0:01:02]} 28. a3 {[%clk 0:01:09]}  Kg7 {[%clk 0:00:27]} 29. Re2 {[%clk 0:00:58]}  Kf6 {[%clk 0:00:23]} 30. Ne1 {[%clk 0:00:57]}  Rd4+ {[%clk 0:00:18]} 31. Kc3 {[%clk 0:00:55]}  Rd1 {[%clk 0:00:11]} 32. Nc2 {[%clk 0:00:55]}  Rg1 {[%clk 0:00:09]} 33. f3 {[%clk 0:00:54]}  Rh1 {[%clk 0:00:07]} 34. h3 {[%clk 0:00:54]}  h5 {[%clk 0:00:07]} 35. Nb4 {[%clk 0:00:52]}  Bd4+ {[%clk 0:00:06]} 36. Kc2 {[%clk 0:00:51]}  Kg5 {[%clk 0:00:05]} 37. Nd3 {[%clk 0:00:50]}  Kh4 {[%clk 0:00:05]} 38. f4 {[%clk 0:00:31]}  exf4 {[%clk 0:00:04]} 39. Nxf4 {[%clk 0:00:30]}  Kg3 {[%clk 0:00:04]} 40. Nd3 {[%clk 0:00:19]}  Rh2 {[%clk 0:00:04]} 41. Ne1 {[%clk 0:00:18]}  Bf2 {[%clk 0:00:03]} 42. Nd3 {[%clk 0:00:15]}  Bd4 {[%clk 0:00:03]} 43. Ne1 {[%clk 0:00:15]}  Kf4 {[%clk 0:00:03]} 44. Nf3 {[%clk 0:00:14]}  Rh1 {[%clk 0:00:03]} 45. Nxd4 {[%clk 0:00:14]}  Ke5 {[%clk 0:00:03]} 46. Nf3+ {[%clk 0:00:14]}  Kf4 {[%clk 0:00:03]} 47. e5 {[%clk 0:00:14]}  Rf1 {[%clk 0:00:02]} 48. b4 {[%clk 0:00:14]}  Kg3 {[%clk 0:00:02]} 49. Nd4 {[%clk 0:00:12]}  g5 {[%clk 0:00:02]} 50. Kd2 {[%clk 0:00:12]}  g4 {[%clk 0:00:01]} 51. hxg4 {[%clk 0:00:11]}  hxg4 {[%clk 0:00:02]} 52. e6 {[%clk 0:00:10]}  fxe6 {[%clk 0:00:02]} 53. Nxe6 {[%clk 0:00:11]}  Rg1 {[%clk 0:00:01]} 54. Ng5 {[%clk 0:00:11]}  Rxg2 {[%clk 0:00:01]} 55. Ne4+ {[%clk 0:00:10]}  Kf3 {[%clk 0:00:01]} 56. Rxg2 {[%clk 0:00:10]}  Kxg2 {[%clk 0:00:02]} 57. Kd3 {[%clk 0:00:11]}  Kf3 {[%clk 0:00:02]} 58. Kd4 {[%clk 0:00:11]}  g3 {[%clk 0:00:01]} 59. Nxg3 {[%clk 0:00:11]}  Kxg3 {[%clk 0:00:02]} 60. Kd5 {[%clk 0:00:11]}  Kf4 {[%clk 0:00:03]} 61. Kd6 {[%clk 0:00:11]}  Ke4 {[%clk 0:00:03]} 62. Kc7 {[%clk 0:00:12]}  b5 {[%clk 0:00:03]} 63. Kc6 {[%clk 0:00:11]}  Kd4 {[%clk 0:00:04]} 64. Kxb5 {[%clk 0:00:11]}  Kd5 {[%clk 0:00:05]} 65. a4 {[%clk 0:00:12]}  Kd6 {[%clk 0:00:04]} 66. Ka6 {[%clk 0:00:11]}  Kc6 {[%clk 0:00:05]} 67. Kxa7 {[%clk 0:00:12]}  Kc7 {[%clk 0:00:05]} 68. Ka6 {[%clk 0:00:12]}  Kb8 {[%clk 0:00:05]} 69. Kb5 {[%clk 0:00:13]}  Kb7 {[%clk 0:00:05]} 70. Kc5 {[%clk 0:00:14]}  Ka6 {[%clk 0:00:05]} 71. Kd6 {[%clk 0:00:15]}  Ka7 {[%clk 0:00:05]} 72. Kc7 {[%clk 0:00:16]}  Ka8 {[%clk 0:00:05]} 73. b5 {[%clk 0:00:16]}  Ka7 {[%clk 0:00:06]} 74. b6+ {[%clk 0:00:17]}  Ka8 {[%clk 0:00:06]} 75. b7+ {[%clk 0:00:17]}  Ka7 {[%clk 0:00:07]} 76. b8=Q+ {[%clk 0:00:17]}  Ka6 {[%clk 0:00:07]} 77. Kc6 {[%clk 0:00:18]}  Ka5 {[%clk 0:00:06]} 78. Qb5# {[%clk 0:00:18]} 1-0


[Site "https://www.chess.com"]

[Event "Titled Tuesday Blitz December 27 Late 2022"]
[White "Korchmar, Vasiliy"]
[Black "Sargsyan, Anna M."]
[WhiteFideId "24131750"]
[BlackFideId "13308130"]
[WhiteElo "2438"]
[BlackElo "2375"]
[Result "1/2-1/2"]
[Round "11"]
[TimeControl "180+2"]
[Date "2022.12.27"]
[WhiteClock "0:00:02"]
[BlackClock "0:00:03"]

1. e4 {[%clk 0:03:00]}  e5 {[%clk 0:02:59]} 2. Nf3 {[%clk 0:03:01]}  Nc6 {[%clk 0:02:59]} 3. Bc4 {[%clk 0:03:01]}  Bc5 {[%clk 0:02:58]} 4. c3 {[%clk 0:03:02]}  Nf6 {[%clk 0:02:57]} 5. d3 {[%clk 0:03:03]}  d6 {[%clk 0:02:57]} 6. Bg5 {[%clk 0:03:03]}  h6 {[%clk 0:02:56]} 7. Bh4 {[%clk 0:03:04]}  g5 {[%clk 0:02:52]} 8. Bg3 {[%clk 0:03:04]}  a5 {[%clk 0:02:49]} 9. O-O {[%clk 0:03:04]}  Qe7 {[%clk 0:02:50]} 10. d4 {[%clk 0:03:04]}  Ba7 {[%clk 0:02:44]} 11. Na3 {[%clk 0:03:01]}  O-O {[%clk 0:02:36]} 12. Nb5 {[%clk 0:03:01]}  Bb6 {[%clk 0:02:36]} 13. h3 {[%clk 0:02:52]}  Nxe4 {[%clk 0:02:33]} 14. Bh2 {[%clk 0:02:52]}  Kg7 {[%clk 0:02:22]} 15. Re1 {[%clk 0:02:52]}  f5 {[%clk 0:02:21]} 16. Bd3 {[%clk 0:02:49]}  Qf6 {[%clk 0:02:01]} 17. Bxe4 {[%clk 0:02:42]}  fxe4 {[%clk 0:02:01]} 18. dxe5 {[%clk 0:02:42]}  dxe5 {[%clk 0:01:52]} 19. Rxe4 {[%clk 0:02:42]}  Bxh3 {[%clk 0:01:48]} 20. Qe2 {[%clk 0:01:22]}  Bf5 {[%clk 0:01:17]} 21. Rxe5 {[%clk 0:01:03]}  Bg4 {[%clk 0:01:17]} 22. Rd1 {[%clk 0:00:43]}  Bxf3 {[%clk 0:01:10]} 23. gxf3 {[%clk 0:00:43]}  Qxf3 {[%clk 0:01:07]} 24. Rd7+ {[%clk 0:00:44]}  Kg6 {[%clk 0:00:43]} 25. Re6+ {[%clk 0:00:42]}  Kh5 {[%clk 0:00:41]} 26. Qxf3+ {[%clk 0:00:36]}  Rxf3 {[%clk 0:00:42]} 27. Bxc7 {[%clk 0:00:37]}  Bxf2+ {[%clk 0:00:18]} 28. Kg2 {[%clk 0:00:36]}  Raf8 {[%clk 0:00:18]} 29. Rdd6 {[%clk 0:00:20]}  Bh4 {[%clk 0:00:17]} 30. Rxh6+ {[%clk 0:00:20]}  Kg4 {[%clk 0:00:17]} 31. Rd2 {[%clk 0:00:17]}  Rf2+ {[%clk 0:00:17]} 32. Rxf2 {[%clk 0:00:17]}  Rxf2+ {[%clk 0:00:17]} 33. Kg1 {[%clk 0:00:17]}  Rxb2 {[%clk 0:00:18]} 34. a4 {[%clk 0:00:12]}  Ne7 {[%clk 0:00:13]} 35. Nd4 {[%clk 0:00:05]}  Nd5 {[%clk 0:00:12]} 36. Be5 {[%clk 0:00:04]}  Ne3 {[%clk 0:00:11]} 37. Rf6 {[%clk 0:00:02]}  Rb1+ {[%clk 0:00:11]} 38. Kh2 {[%clk 0:00:02]}  Rb2+ {[%clk 0:00:08]} 39. Kg1 {[%clk 0:00:03]}  Rb1+ {[%clk 0:00:04]} 40. Kh2 {[%clk 0:00:02]}  Rb2+ {[%clk 0:00:03]} 41. Kg1 {[%clk 0:00:02]} 1/2-1/2


[Site "https://www.chess.com"]

[Event "Titled Tuesday Blitz December 27 Late 2022"]
[White "Liu, Casper"]
[Black "Domingo Nunez, Ruben"]
[WhiteFideId "1454153"]
[BlackFideId "22245570"]
[WhiteElo "2278"]
[BlackElo "2416"]
[Result "0-1"]
[Round "11"]
[TimeControl "180+2"]
[Date "2022.12.27"]
[WhiteClock "0:02:20"]
[BlackClock "0:02:46"]

1. d3 {[%clk 0:02:53]}  d5 {[%clk 0:02:53]} 2. g3 {[%clk 0:02:54]}  e5 {[%clk 0:02:53]} 3. Bg2 {[%clk 0:02:55]}  Be6 {[%clk 0:02:54]} 4. Nf3 {[%clk 0:02:55]}  f6 {[%clk 0:02:54]} 5. O-O {[%clk 0:02:56]}  Ne7 {[%clk 0:02:54]} 6. b3 {[%clk 0:02:56]}  c5 {[%clk 0:02:54]} 7. Bb2 {[%clk 0:02:56]}  Nbc6 {[%clk 0:02:55]} 8. Nbd2 {[%clk 0:02:56]}  Ng6 {[%clk 0:02:54]} 9. a4 {[%clk 0:02:56]}  h5 {[%clk 0:02:54]} 10. e4 {[%clk 0:02:55]}  d4 {[%clk 0:02:54]} 11. c3 {[%clk 0:02:54]}  h4 {[%clk 0:02:54]} 12. cxd4 {[%clk 0:02:53]}  cxd4 {[%clk 0:02:54]} 13. Rc1 {[%clk 0:02:52]}  Qd7 {[%clk 0:02:50]} 14. Ne1 {[%clk 0:02:33]}  Bh3 {[%clk 0:02:49]} 15. Qf3 {[%clk 0:02:25]}  Bg4 {[%clk 0:02:48]} 16. Bh3 {[%clk 0:02:20]}  Bxh3 {[%clk 0:02:46]} 0-1


[Site "https://www.chess.com"]

[Event "Titled Tuesday Blitz December 27 Late 2022"]
[White "Liu, Kelsey"]
[Black "Clawitter, Craig"]
[WhiteFideId "30944481"]
[BlackFideId "2023105"]
[WhiteElo "2065"]
[BlackElo "2050"]
[Result "0-1"]
[Round "11"]
[TimeControl "180+2"]
[Date "2022.12.27"]
[WhiteClock "0:00:20"]
[BlackClock "0:01:16"]

1. e4 {[%clk 0:03:00]}  e6 {[%clk 0:03:00]} 2. d4 {[%clk 0:03:00]}  d5 {[%clk 0:03:00]} 3. Nc3 {[%clk 0:02:59]}  Bb4 {[%clk 0:03:00]} 4. Ne2 {[%clk 0:02:58]}  dxe4 {[%clk 0:02:59]} 5. a3 {[%clk 0:02:58]}  Be7 {[%clk 0:03:00]} 6. Nxe4 {[%clk 0:02:55]}  Nf6 {[%clk 0:03:00]} 7. Nxf6+ {[%clk 0:02:40]}  Bxf6 {[%clk 0:03:00]} 8. Be3 {[%clk 0:02:40]}  Nc6 {[%clk 0:03:00]} 9. Qd3 {[%clk 0:02:36]}  e5 {[%clk 0:02:58]} 10. d5 {[%clk 0:02:30]}  Ne7 {[%clk 0:02:59]} 11. O-O-O {[%clk 0:02:23]}  O-O {[%clk 0:02:53]} 12. Ng3 {[%clk 0:02:17]}  g6 {[%clk 0:02:51]} 13. h4 {[%clk 0:02:16]}  Nf5 {[%clk 0:02:47]} 14. Ne4 {[%clk 0:02:04]}  Bg7 {[%clk 0:02:40]} 15. h5 {[%clk 0:01:55]}  Nd6 {[%clk 0:02:35]} 16. hxg6 {[%clk 0:01:54]}  fxg6 {[%clk 0:02:33]} 17. Bg5 {[%clk 0:01:52]}  Qe8 {[%clk 0:02:22]} 18. Nxd6 {[%clk 0:01:33]}  cxd6 {[%clk 0:02:23]} 19. Qe3 {[%clk 0:01:33]}  Bf5 {[%clk 0:02:14]} 20. Bh6 {[%clk 0:01:28]}  Rc8 {[%clk 0:02:13]} 21. Bxg7 {[%clk 0:01:27]}  Rxc2+ {[%clk 0:02:13]} 22. Kb1 {[%clk 0:01:25]}  Re2+ {[%clk 0:01:52]} 23. Ka1 {[%clk 0:01:17]}  Rxe3 {[%clk 0:01:51]} 24. Bxf8 {[%clk 0:01:13]}  Rxa3+ {[%clk 0:01:22]} 25. bxa3 {[%clk 0:01:11]}  Qa4 {[%clk 0:01:22]} 26. Bd3 {[%clk 0:00:19]}  Qxa3+ {[%clk 0:01:18]} 27. Kb1 {[%clk 0:00:19]}  Bxd3+ {[%clk 0:01:16]} 28. Rxd3 {[%clk 0:00:20]}  Qxd3+ {[%clk 0:01:16]} 0-1


[Site "https://www.chess.com"]

[Event "Titled Tuesday Blitz December 27 Late 2022"]
[White "Melikhov, Evgeny V."]
[Black "Pinheiro, Iung Alicio de O."]
[WhiteFideId "4122046"]
[BlackFideId "2104350"]
[WhiteElo "2269"]
[BlackElo "2306"]
[Result "0-1"]
[Round "11"]
[TimeControl "180+2"]
[Date "2022.12.27"]
[WhiteClock "0:00:09"]
[BlackClock "0:00:07"]

1. d4 {[%clk 0:03:00]}  Nf6 {[%clk 0:02:59]} 2. c4 {[%clk 0:03:00]}  g6 {[%clk 0:02:59]} 3. Nc3 {[%clk 0:03:00]}  d5 {[%clk 0:02:58]} 4. Nf3 {[%clk 0:02:53]}  Bg7 {[%clk 0:02:57]} 5. e3 {[%clk 0:02:54]}  O-O {[%clk 0:02:57]} 6. Be2 {[%clk 0:02:54]}  c5 {[%clk 0:02:53]} 7. O-O {[%clk 0:02:53]}  cxd4 {[%clk 0:02:52]} 8. exd4 {[%clk 0:02:53]}  Nc6 {[%clk 0:02:47]} 9. Re1 {[%clk 0:02:51]}  b6 {[%clk 0:02:45]} 10. Ne5 {[%clk 0:02:48]}  Bb7 {[%clk 0:02:36]} 11. Bf3 {[%clk 0:02:48]}  Na5 {[%clk 0:02:29]} 12. b3 {[%clk 0:02:37]}  Rc8 {[%clk 0:02:26]} 13. Bg5 {[%clk 0:02:30]}  dxc4 {[%clk 0:02:09]} 14. Bxb7 {[%clk 0:02:29]}  Nxb7 {[%clk 0:02:09]} 15. bxc4 {[%clk 0:02:29]}  Na5 {[%clk 0:02:09]} 16. c5 {[%clk 0:02:21]}  bxc5 {[%clk 0:01:48]} 17. d5 {[%clk 0:02:20]}  Ne8 {[%clk 0:01:34]} 18. Rc1 {[%clk 0:02:03]}  f6 {[%clk 0:01:10]} 19. d6 {[%clk 0:01:30]}  Nxd6 {[%clk 0:00:58]} 20. Qd5+ {[%clk 0:00:56]}  Kh8 {[%clk 0:00:56]} 21. Qe6 {[%clk 0:00:53]}  fxg5 {[%clk 0:00:47]} 22. Nd5 {[%clk 0:00:52]}  Nc6 {[%clk 0:00:23]} 23. Nxc6 {[%clk 0:00:34]}  Rxc6 {[%clk 0:00:24]} 24. Nxe7 {[%clk 0:00:34]}  Rc7 {[%clk 0:00:24]} 25. Rcd1 {[%clk 0:00:25]}  Rxe7 {[%clk 0:00:21]} 26. Qxe7 {[%clk 0:00:24]}  Qxe7 {[%clk 0:00:21]} 27. Rxe7 {[%clk 0:00:24]}  Bd4 {[%clk 0:00:22]} 28. Rb1 {[%clk 0:00:17]}  Rxf2 {[%clk 0:00:13]} 29. Kh1 {[%clk 0:00:17]}  Rf7 {[%clk 0:00:13]} 30. Re6 {[%clk 0:00:17]}  Rd7 {[%clk 0:00:11]} 31. h3 {[%clk 0:00:16]}  Nf5 {[%clk 0:00:11]} 32. Rb5 {[%clk 0:00:15]}  Kg7 {[%clk 0:00:12]} 33. a4 {[%clk 0:00:14]}  h5 {[%clk 0:00:12]} 34. a5 {[%clk 0:00:15]}  h4 {[%clk 0:00:12]} 35. a6 {[%clk 0:00:15]}  Bf2 {[%clk 0:00:12]} 36. Rb7 {[%clk 0:00:14]}  Rf7 {[%clk 0:00:10]} 37. Rc6 {[%clk 0:00:12]}  c4 {[%clk 0:00:09]} 38. Rcc7 {[%clk 0:00:13]}  Rxc7 {[%clk 0:00:08]} 39. Rxc7+ {[%clk 0:00:13]}  Kf6 {[%clk 0:00:09]} 40. Rxc4 {[%clk 0:00:14]}  Nd6 {[%clk 0:00:09]} 41. Rc6 {[%clk 0:00:14]}  Ke6 {[%clk 0:00:09]} 42. Rc7 {[%clk 0:00:14]}  Bb6 {[%clk 0:00:09]} 43. Rg7 {[%clk 0:00:14]}  Kf6 {[%clk 0:00:09]} 44. Rd7 {[%clk 0:00:14]}  Nb5 {[%clk 0:00:09]} 45. Rb7 {[%clk 0:00:13]}  Kf5 {[%clk 0:00:09]} 46. Kh2 {[%clk 0:00:12]}  Nc7 {[%clk 0:00:09]} 47. Rb8 {[%clk 0:00:09]}  Nxa6 {[%clk 0:00:09]} 48. Rc8 {[%clk 0:00:10]}  Nc5 {[%clk 0:00:09]} 49. g4+ {[%clk 0:00:10]}  Kf6 {[%clk 0:00:08]} 50. Kg2 {[%clk 0:00:10]}  Ne6 {[%clk 0:00:08]} 51. Kf3 {[%clk 0:00:09]}  Nf4 {[%clk 0:00:07]} 52. Rc6+ {[%clk 0:00:08]}  Kf7 {[%clk 0:00:08]} 53. Ke4 {[%clk 0:00:07]}  Nxh3 {[%clk 0:00:07]} 54. Ke5 {[%clk 0:00:07]}  Nf4 {[%clk 0:00:07]} 55. Rf6+ {[%clk 0:00:07]}  Kg7 {[%clk 0:00:06]} 56. Rc6 {[%clk 0:00:07]}  h3 {[%clk 0:00:07]} 57. Rc2 {[%clk 0:00:06]}  Bg1 {[%clk 0:00:04]} 58. Rc7+ {[%clk 0:00:05]}  Kf8 {[%clk 0:00:03]} 59. Kf6 {[%clk 0:00:05]}  Nd5+ {[%clk 0:00:03]} 60. Kxg6 {[%clk 0:00:05]}  Nxc7 {[%clk 0:00:03]} 61. Kxg5 {[%clk 0:00:06]}  h2 {[%clk 0:00:04]} 62. Kh4 {[%clk 0:00:07]}  h1=Q+ {[%clk 0:00:05]} 63. Kg5 {[%clk 0:00:07]}  Qd5+ {[%clk 0:00:06]} 64. Kg6 {[%clk 0:00:08]}  Be3 {[%clk 0:00:07]} 65. g5 {[%clk 0:00:08]}  Qxg5+ {[%clk 0:00:07]} 66. Kh7 {[%clk 0:00:09]}  Qg7# {[%clk 0:00:07]} 0-1


[Site "https://www.chess.com"]

[Event "Titled Tuesday Blitz December 27 Late 2022"]
[White "Mushini Ajay"]
[Black "Carbone, Diego"]
[WhiteFideId "35066188"]
[BlackFideId "3002179"]
[WhiteElo "2310"]
[BlackElo "2336"]
[Result "0-1"]
[Round "11"]
[TimeControl "180+2"]
[Date "2022.12.27"]
[WhiteClock "0:00:02"]
[BlackClock "0:00:04"]

1. e4 {[%clk 0:03:00]}  e5 {[%clk 0:02:55]} 2. Nf3 {[%clk 0:03:00]}  Nc6 {[%clk 0:02:51]} 3. Bb5 {[%clk 0:02:59]}  a6 {[%clk 0:02:52]} 4. Bxc6 {[%clk 0:02:59]}  dxc6 {[%clk 0:02:53]} 5. d3 {[%clk 0:02:59]}  f6 {[%clk 0:02:50]} 6. Nbd2 {[%clk 0:02:58]}  Ne7 {[%clk 0:02:47]} 7. Nc4 {[%clk 0:02:58]}  Ng6 {[%clk 0:02:47]} 8. Ne3 {[%clk 0:02:56]}  Bc5 {[%clk 0:02:42]} 9. Nf5 {[%clk 0:02:55]}  O-O {[%clk 0:02:39]} 10. g4 {[%clk 0:02:55]}  Be6 {[%clk 0:02:28]} 11. h4 {[%clk 0:02:54]}  Qd7 {[%clk 0:02:26]} 12. h5 {[%clk 0:02:54]}  Ne7 {[%clk 0:02:23]} 13. Rg1 {[%clk 0:02:46]}  Kh8 {[%clk 0:02:16]} 14. Be3 {[%clk 0:02:35]}  Bxe3 {[%clk 0:02:12]} 15. Nxe3 {[%clk 0:02:36]}  c5 {[%clk 0:02:08]} 16. g5 {[%clk 0:02:33]}  fxg5 {[%clk 0:02:08]} 17. Nxg5 {[%clk 0:02:34]}  Rf4 {[%clk 0:01:58]} 18. Qe2 {[%clk 0:02:24]}  Raf8 {[%clk 0:01:56]} 19. Rg2 {[%clk 0:02:24]}  Bg8 {[%clk 0:01:52]} 20. O-O-O {[%clk 0:02:21]}  Qa4 {[%clk 0:01:50]} 21. a3 {[%clk 0:02:20]}  b5 {[%clk 0:01:41]} 22. c4 {[%clk 0:01:40]}  Nc6 {[%clk 0:01:30]} 23. Nc2 {[%clk 0:01:25]}  bxc4 {[%clk 0:01:16]} 24. Nh3 {[%clk 0:01:17]}  cxd3 {[%clk 0:01:10]} 25. Qxd3 {[%clk 0:01:10]}  Rf3 {[%clk 0:01:08]} 26. Qd7 {[%clk 0:01:08]}  R3f7 {[%clk 0:00:40]} 27. Qg4 {[%clk 0:00:43]}  Nd4 {[%clk 0:00:36]} 28. Nxd4 {[%clk 0:00:32]}  cxd4 {[%clk 0:00:37]} 29. h6 {[%clk 0:00:16]}  g6 {[%clk 0:00:23]} 30. f4 {[%clk 0:00:15]}  exf4 {[%clk 0:00:14]} 31. Ng5 {[%clk 0:00:15]}  Re7 {[%clk 0:00:07]} 32. Rc2 {[%clk 0:00:09]}  Bb3 {[%clk 0:00:07]} 33. Qg1 {[%clk 0:00:08]}  Bxc2 {[%clk 0:00:05]} 34. Rxd4 {[%clk 0:00:08]}  Qc6 {[%clk 0:00:04]} 35. Kd2 {[%clk 0:00:07]}  Bb3 {[%clk 0:00:04]} 36. Nf3 {[%clk 0:00:03]}  Rd7 {[%clk 0:00:05]} 37. Ke1 {[%clk 0:00:02]}  Rfd8 {[%clk 0:00:04]} 0-1


[Site "https://www.chess.com"]

[Event "Titled Tuesday Blitz December 27 Late 2022"]
[White "Oro, Faustino"]
[Black "Silva, Miguel Antonio Neto"]
[WhiteFideId "20000197"]
[BlackFideId "1911929"]
[WhiteElo "2269"]
[BlackElo "2204"]
[Result "1-0"]
[Round "11"]
[TimeControl "180+2"]
[Date "2022.12.27"]
[WhiteClock "0:00:17"]
[BlackClock "0:00:56"]

1. e4 {[%clk 0:03:00]}  c6 {[%clk 0:02:58]} 2. d4 {[%clk 0:02:59]}  d5 {[%clk 0:02:58]} 3. e5 {[%clk 0:03:00]}  Bf5 {[%clk 0:02:57]} 4. Nf3 {[%clk 0:02:58]}  e6 {[%clk 0:02:56]} 5. Be2 {[%clk 0:02:59]}  Nd7 {[%clk 0:02:55]} 6. O-O {[%clk 0:02:58]}  Ne7 {[%clk 0:02:55]} 7. a4 {[%clk 0:02:58]}  h6 {[%clk 0:02:48]} 8. Nbd2 {[%clk 0:02:52]}  a6 {[%clk 0:02:48]} 9. a5 {[%clk 0:02:49]}  Rc8 {[%clk 0:02:47]} 10. c3 {[%clk 0:02:44]}  c5 {[%clk 0:02:47]} 11. dxc5 {[%clk 0:02:44]}  Nxc5 {[%clk 0:02:46]} 12. Nd4 {[%clk 0:02:44]}  Bg6 {[%clk 0:02:43]} 13. N2f3 {[%clk 0:02:35]}  Nf5 {[%clk 0:02:40]} 14. Nxf5 {[%clk 0:02:21]}  Bxf5 {[%clk 0:02:39]} 15. Be3 {[%clk 0:02:21]}  Be7 {[%clk 0:02:38]} 16. Nd4 {[%clk 0:02:21]}  Bh7 {[%clk 0:02:36]} 17. f4 {[%clk 0:02:16]}  Be4 {[%clk 0:02:32]} 18. Bg4 {[%clk 0:02:03]}  g6 {[%clk 0:02:32]} 19. Qd2 {[%clk 0:01:50]}  Bf5 {[%clk 0:02:26]} 20. Nxf5 {[%clk 0:01:45]}  gxf5 {[%clk 0:02:25]} 21. Bh5 {[%clk 0:01:44]}  Ne4 {[%clk 0:02:22]} 22. Qe2 {[%clk 0:01:42]}  Bc5 {[%clk 0:02:21]} 23. Rf3 {[%clk 0:01:17]}  Qe7 {[%clk 0:02:13]} 24. Kh1 {[%clk 0:01:14]}  Rg8 {[%clk 0:02:12]} 25. Raf1 {[%clk 0:01:10]}  Bxe3 {[%clk 0:02:11]} 26. Rxe3 {[%clk 0:01:09]}  Rc4 {[%clk 0:02:02]} 27. g4 {[%clk 0:01:02]}  fxg4 {[%clk 0:01:56]} 28. f5 {[%clk 0:00:53]}  Kd8 {[%clk 0:01:25]} 29. fxe6 {[%clk 0:00:39]}  fxe6 {[%clk 0:01:24]} 30. Rd3 {[%clk 0:00:27]}  Qg5 {[%clk 0:01:18]} 31. Bf7 {[%clk 0:00:25]}  Rg7 {[%clk 0:01:06]} 32. Bxe6 {[%clk 0:00:21]}  Ke7 {[%clk 0:00:59]} 33. Bxd5 {[%clk 0:00:19]}  Qxe5 {[%clk 0:00:59]} 34. Bxc4 {[%clk 0:00:16]}  Ng3+ {[%clk 0:00:59]} 35. Rxg3 {[%clk 0:00:16]}  Qxe2 {[%clk 0:00:59]} 36. Bxe2 {[%clk 0:00:17]}  h5 {[%clk 0:00:59]} 37. h3 {[%clk 0:00:16]}  Rg5 {[%clk 0:00:56]} 38. hxg4 {[%clk 0:00:16]}  hxg4 {[%clk 0:00:56]} 39. Rxg4 {[%clk 0:00:17]}  Rxa5 {[%clk 0:00:56]} 40. Re4+ {[%clk 0:00:16]}  Kd6 {[%clk 0:00:56]} 41. Rf6+ {[%clk 0:00:16]}  Kc7 {[%clk 0:00:55]} 42. Re7+ {[%clk 0:00:16]}  Kb8 {[%clk 0:00:55]} 43. Bf3 {[%clk 0:00:17]}  Rb5 {[%clk 0:00:54]} 44. Rff7 {[%clk 0:00:16]}  Rxb2 {[%clk 0:00:54]} 45. Rxb7+ {[%clk 0:00:16]}  Rxb7 {[%clk 0:00:55]} 46. Rxb7+ {[%clk 0:00:16]}  Kc8 {[%clk 0:00:56]} 47. Ra7 {[%clk 0:00:17]} 1-0


[Site "https://www.chess.com"]

[Event "Titled Tuesday Blitz December 27 Late 2022"]
[White "Petrovic, Aleksa"]
[Black "Yuan, Qingyu"]
[WhiteFideId "967629"]
[BlackFideId "8609772"]
[WhiteElo "2332"]
[BlackElo "2373"]
[Result "0-1"]
[Round "11"]
[TimeControl "180+2"]
[Date "2022.12.27"]
[WhiteClock "0:00:01"]
[BlackClock "0:00:04"]

1. e4 {[%clk 0:03:00]}  e5 {[%clk 0:03:00]} 2. Nf3 {[%clk 0:03:01]}  Nc6 {[%clk 0:03:00]} 3. Bc4 {[%clk 0:03:01]}  Bc5 {[%clk 0:03:00]} 4. c3 {[%clk 0:03:00]}  Nf6 {[%clk 0:03:00]} 5. d4 {[%clk 0:03:01]}  exd4 {[%clk 0:03:00]} 6. cxd4 {[%clk 0:03:02]}  Bb4+ {[%clk 0:03:00]} 7. Nc3 {[%clk 0:03:02]}  Nxe4 {[%clk 0:03:00]} 8. O-O {[%clk 0:03:03]}  Bxc3 {[%clk 0:02:55]} 9. bxc3 {[%clk 0:03:04]}  d5 {[%clk 0:02:55]} 10. Ba3 {[%clk 0:03:04]}  Be6 {[%clk 0:02:36]} 11. Bb5 {[%clk 0:03:04]}  f6 {[%clk 0:02:18]} 12. Re1 {[%clk 0:01:21]}  Kf7 {[%clk 0:02:16]} 13. Rc1 {[%clk 0:00:56]}  Na5 {[%clk 0:01:50]} 14. c4 {[%clk 0:00:46]}  c6 {[%clk 0:01:22]} 15. Ba4 {[%clk 0:00:41]}  Re8 {[%clk 0:01:18]} 16. Bb4 {[%clk 0:00:27]}  Nd6 {[%clk 0:01:03]} 17. cxd5 {[%clk 0:00:14]}  Bxd5 {[%clk 0:01:00]} 18. Rxe8 {[%clk 0:00:14]}  Nxe8 {[%clk 0:00:57]} 19. Qd2 {[%clk 0:00:10]}  Nc4 {[%clk 0:00:51]} 20. Qf4 {[%clk 0:00:10]}  Ned6 {[%clk 0:00:37]} 21. Bc2 {[%clk 0:00:07]}  Kg8 {[%clk 0:00:34]} 22. Bb3 {[%clk 0:00:07]}  Qd7 {[%clk 0:00:22]} 23. Bxd6 {[%clk 0:00:07]}  Nxd6 {[%clk 0:00:20]} 24. Bxd5+ {[%clk 0:00:07]}  cxd5 {[%clk 0:00:20]} 25. h4 {[%clk 0:00:07]}  b6 {[%clk 0:00:18]} 26. Re1 {[%clk 0:00:06]}  h5 {[%clk 0:00:15]} 27. Qd2 {[%clk 0:00:04]}  Ne4 {[%clk 0:00:15]} 28. Qd3 {[%clk 0:00:04]}  Rc8 {[%clk 0:00:15]} 29. Nd2 {[%clk 0:00:04]}  Rc3 {[%clk 0:00:14]} 30. Qe2 {[%clk 0:00:04]}  Rc2 {[%clk 0:00:14]} 31. Qxh5 {[%clk 0:00:03]}  Rxd2 {[%clk 0:00:13]} 32. Rc1 {[%clk 0:00:03]}  Nd6 {[%clk 0:00:12]} 33. Qxd5+ {[%clk 0:00:02]}  Kf8 {[%clk 0:00:11]} 34. Qh5 {[%clk 0:00:02]}  Nf7 {[%clk 0:00:11]} 35. Qf3 {[%clk 0:00:01]}  Rxd4 {[%clk 0:00:06]} 36. Qa8+ {[%clk 0:00:02]}  Nd8 {[%clk 0:00:06]} 37. Rc8 {[%clk 0:00:02]}  Qd6 {[%clk 0:00:05]} 38. g3 {[%clk 0:00:01]}  Rd1+ {[%clk 0:00:05]} 39. Kh2 {[%clk 0:00:02]}  Qd5 {[%clk 0:00:05]} 40. Qxa7 {[%clk 0:00:01]}  Qh1# {[%clk 0:00:04]} 0-1


[Site "https://www.chess.com"]